fUSD/lending_fUSD_20250221
["ID","MTS","AMOUNT","RATE_DAILY","PERIOD"]
[353928287,1740151842399,-513.05,0.00013499,2]
[353928288,1740151842408,-992.01,0.00013499,2]
[353928289,1740151842417,-500.0,0.00013499,2]
[353928290,1740151842427,-1137.52,0.00013499,2]
[353928291,1740151842437,-500.0,0.00013499,2]
[353928292,1740151842447,-500.0,0.00013499,2]
[353928293,1740151842457,-500.0,0.00013499,2]
[353928294,1740151842467,-500.0,0.00013499,2]
[353928295,1740151842476,-7614.889,0.000135,2]
[353928296,1740151842486,-151.0,0.000135,2]
[353928297,1740151842496,-151.0,0.000135,2]
[353928298,1740151842505,-1831.940265,0.000135,2]
[353928299,1740151842517,-580.57263,0.000135,2]
[353928300,1740151842526,-1831.940265,0.000135,2]
[353928301,1740151842535,-580.57263,0.000135,2]
[353928302,1740151842545,-151.0,0.000135,2]
[353928303,1740151842554,-150.0,0.00013505,2]
[353928304,1740151842564,-8032.42707416,0.00013533,2]
[353928305,1740151842574,-1520.07511546,0.00013533,2]
[353928306,1740151842583,-150.0,0.00013533,2]
[353928307,1740151842593,-440.33,0.00013562,2]
[353928308,1740151842603,-150.0,0.00013568,2]
[353928309,1740151842617,-150.0,0.00013574,2]
[353928310,1740151842627,-8032.42707416,0.00013575,2]
[353928311,1740151842636,-1520.07511546,0.00013575,2]
[353928312,1740151842645,-200.0,0.00013586,2]
[353928313,1740151842655,-1825.18,0.00013588,2]
[353928314,1740151842665,-1825.18,0.00013588,2]
[353928315,1740151842674,-500.0,0.00013588,2]
[353928317,1740151842683,-500.0,0.00013588,2]
[353928320,1740151842694,-513.05,0.00013588,2]
[353928323,1740151842703,-513.05,0.00013588,2]
[353928324,1740151842713,-1308.3,0.00013598,2]
[353928326,1740151842722,-1000.0,0.000136,2]
[353928327,1740151842731,-1000.0,0.000136,2]
[353928328,1740151842740,-1000.0,0.000136,2]
[353928329,1740151842749,-1000.0,0.000136,2]
[353928330,1740151842758,-1000.0,0.000136,2]
[353928331,1740151842767,-1000.0,0.000136,3]
[353928332,1740151842776,-1000.0,0.000136,3]
[353928333,1740151842785,-1000.0,0.000136,3]
[353928334,1740151842794,-1000.0,0.000136,3]
[353928335,1740151842803,-1004.0,0.000136,2]
[353928336,1740151842812,-1000.0,0.000136,2]
[353928337,1740151842822,-1000.0,0.000136,2]
[353928338,1740151842831,-1000.0,0.000136,2]
[353928339,1740151842840,-1000.0,0.000136,4]
[353928340,1740151842849,-150.0,0.00013615,2]
[353928341,1740151842858,-8032.42707416,0.00013616,2]
[353928342,1740151842868,-1520.07511546,0.00013616,2]
[353928343,1740151842877,-889.95732048,0.00013628,2]
[353928344,1740151842887,-4102.0,0.00013644,2]
[353928345,1740151842896,-150.0,0.00013658,2]
[353928346,1740151842905,-8032.42707416,0.00013658,2]
[353928347,1740151842916,-1520.07511546,0.00013658,2]
[353928348,1740151842925,-57973.52541207,0.0001367,2]
[353928349,1740151842935,-151.0,0.0001367,2]
[353928350,1740151842944,-151.0,0.0001367,2]
[353928351,1740151842954,-1184.364884,0.0001367,2]
[353928352,1740151842963,-432.31286095,0.0001367,2]
[353928353,1740151842973,-150.0,0.00013678,2]
[353928354,1740151842982,-262.4295616,0.00013689,2]
[353928355,1740151842992,-3329.7728304,0.00013689,2]
[353928356,1740151843003,-514.3564767,0.00013689,2]
[353928357,1740151843013,-240.0713108,0.00013689,2]
[353928358,1740151843023,-758.99131518,0.00013689,2]
[353928359,1740151843032,-10059.5683634,0.00013689,2]
[353928360,1740151843041,-349.54893506,0.00013694,2]
[353928361,1740151843051,-1299.88880874,0.00013694,2]
[353928362,1740151843061,-1825.18,0.00013696,2]
[353928363,1740151843071,-1221.09,0.00013696,2]
[353928364,1740151843080,-220.80042778,0.00013696,2]
[353928365,1740151843089,-513.05,0.00013696,2]
[353928366,1740151843099,-300.0,0.00013696,2]
[353928367,1740151843108,-925.0,0.00013696,2]
[353928368,1740151843121,-187.36523239,0.00013697,2]
[353928369,1740151843130,-500.0,0.00013697,2]
[353928370,1740151843140,-500.0,0.00013697,2]
[353928371,1740151843149,-500.0,0.00013697,2]
[353928372,1740151843159,-500.0,0.00013697,2]
[353928373,1740151843168,-500.0,0.00013697,2]
[353928374,1740151843178,-500.0,0.00013697,2]
[353928375,1740151843187,-503.12081949,0.00013697,2]
[353928376,1740151843197,-500.0,0.00013697,2]
[353928377,1740151843206,-500.0,0.00013697,2]
[353928378,1740151843215,-500.0,0.00013697,2]
[353928379,1740151843224,-500.0,0.00013697,2]
[353928380,1740151843233,-500.0,0.00013697,2]
[353928381,1740151843243,-500.0,0.00013697,2]
[353928387,1740151843377,-521.18,0.00013697,2]
[353928388,1740151843387,-500.0,0.00013697,2]
[353928389,1740151843397,-500.0,0.00013697,2]
[353928390,1740151843407,-500.0,0.00013697,2]
[353928391,1740151843417,-500.0,0.00013697,2]
[353928392,1740151843426,-500.0,0.00013697,2]
[353928393,1740151843436,-500.0,0.00013697,2]
[353928394,1740151843445,-500.0,0.00013697,2]
[353928395,1740151843455,-500.0,0.00013697,2]
[353928396,1740151843464,-500.0,0.00013697,2]
[353928397,1740151843474,-500.0,0.00013697,2]
[353928398,1740151843483,-500.0,0.00013697,2]
[353928399,1740151843492,-500.0,0.00013697,2]
[353928400,1740151843501,-500.0,0.00013697,2]
[353928401,1740151843512,-93.27094788,0.00013697,2]
[353928402,1740151843529,-409.45232755,0.00013697,2]
[353928403,1740151843538,-219.78454297,0.00013697,2]
[353928404,1740151844115,-500.0,0.00013424,2]
[353928405,1740151844124,-500.0,0.00013424,2]
[353928406,1740151844134,-296.20833664,0.00013424,2]
[353928407,1740151844144,-203.79166336,0.00013424,2]
[353928408,1740151844153,-497.46,0.00013424,2]
[353928409,1740151844163,-151.0,0.00013498,2]
[353928410,1740151844173,-151.0,0.00013689,2]
[353928411,1740151844182,-280.21545703,0.00013697,2]
[353928412,1740151844192,-500.0,0.00013697,2]
[353928413,1740151844201,-500.0,0.00013697,2]
[353928414,1740151844211,-461.93297961,0.00013697,2]
[353928415,1740151844223,-38.06702039,0.00013697,2]
[353928416,1740151844234,-500.0,0.00013697,2]
[353928417,1740151844243,-500.0,0.00013697,2]
[353928418,1740151844253,-266.44782968,0.00013697,2]
[353928419,1740151844272,-500.0,0.00013499,2]
[353928420,1740151844283,-233.55217032,0.00013697,2]
[353928421,1740151844294,-500.0,0.00013697,2]
[353928422,1740151844304,-500.0,0.00013697,2]
[353928423,1740151844314,-500.0,0.00013697,2]
[353928424,1740151844324,-500.0,0.00013697,2]
[353928425,1740151844335,-500.0,0.00013697,2]
[353928426,1740151844345,-500.0,0.00013697,2]
[353928427,1740151844355,-500.0,0.00013697,2]
[353928428,1740151844368,-500.0,0.00013697,2]
[353928429,1740151844378,-522.16167733,0.00013697,2]
[353928430,1740151844388,-500.0,0.00013697,2]
[353928431,1740151844399,-503.5492988,0.00013697,2]
[353928432,1740151844411,-500.0,0.00013697,2]
[353928433,1740151844421,-500.0,0.00013697,2]
[353928434,1740151844432,-500.0,0.00013697,2]
[353928435,1740151844442,-500.0,0.00013697,2]
[353928436,1740151844452,-500.0,0.00013697,2]
[353928437,1740151844463,-500.0,0.00013697,2]
[353928438,1740151844474,-500.0,0.00013697,2]
[353928439,1740151844484,-40.62695355,0.00013697,2]
[353928440,1740151844498,-459.37304645,0.00013697,2]
[353928441,1740151844509,-500.0,0.00013697,2]
[353928442,1740151844520,-500.0,0.00013697,2]
[353928443,1740151844530,-500.0,0.00013697,2]
[353928444,1740151844541,-500.0,0.00013697,2]
[353928445,1740151844550,-500.0,0.00013697,2]
[353928446,1740151844560,-500.0,0.00013697,2]
[353928447,1740151844571,-500.0,0.00013697,2]
[353928448,1740151844581,-500.0,0.00013697,2]
[353928449,1740151844591,-500.0,0.00013697,2]
[353928450,1740151844601,-500.0,0.00013697,2]
[353928451,1740151844612,-306.8017432,0.00013697,2]
[353928452,1740151844630,-193.1982568,0.00013697,2]
[353928453,1740151844640,-500.0,0.00013697,2]
[353928454,1740151844650,-292.8868432,0.00013697,2]
[353928455,1740151844706,-500.0,0.00013424,2]
[353928456,1740151844716,-207.1131568,0.00013697,2]
[353928457,1740151844726,-500.0,0.00013697,2]
[353928458,1740151844736,-500.0,0.00013697,2]
[353928459,1740151844745,-500.0,0.00013697,2]
[353928460,1740151844755,-500.0,0.00013697,2]
[353928461,1740151844765,-500.0,0.00013697,2]
[353928462,1740151844776,-215.42850656,0.00013697,2]
[353928469,1740151845676,-500.0,0.00013424,2]
[353928471,1740151845687,-500.0,0.00013424,2]
[353928472,1740151845696,-500.0,0.00013424,2]
[353928473,1740151845705,-151.0,0.00013498,2]
[353928474,1740151845714,-500.0,0.00013499,2]
[353928475,1740151845723,-440.33,0.00013562,2]
[353928476,1740151845732,-284.57149344,0.00013697,2]
[353928477,1740151845742,-520.65368419,0.00013697,2]
[353928478,1740151845751,-500.0,0.00013697,2]
[353928479,1740151845759,-500.0,0.00013697,2]
[353928480,1740151845768,-500.0,0.00013697,2]
[353928481,1740151845778,-533.60353728,0.00013697,2]
[353928482,1740151845786,-500.0,0.00013697,2]
[353928483,1740151845795,-500.0,0.00013697,2]
[353928484,1740151845804,-500.0,0.00013697,2]
[353928485,1740151845813,-500.0,0.00013697,2]
[353928486,1740151845822,-500.0,0.00013697,2]
[353928487,1740151845831,-500.0,0.00013697,2]
[353928488,1740151845840,-500.58157741,0.00013697,2]
[353928489,1740151845849,-500.0,0.00013697,2]
[353928490,1740151845858,-500.0,0.00013697,2]
[353928491,1740151845869,-500.0,0.00013697,2]
[353928492,1740151845879,-501.4210288,0.00013697,2]
[353928493,1740151845887,-501.77659537,0.00013697,2]
[353928494,1740151845897,-500.0,0.00013697,2]
[353928495,1740151845906,-500.0,0.00013697,2]
[353928496,1740151845915,-500.0,0.00013697,2]
[353928497,1740151845925,-500.0,0.00013697,2]
[353928498,1740151845934,-500.0,0.00013697,2]
[353928499,1740151845943,-500.0,0.00013697,2]
[353928500,1740151845952,-500.0,0.00013697,2]
[353928501,1740151845962,-500.0,0.00013697,2]
[353928502,1740151845972,-500.0,0.00013697,2]
[353928503,1740151845981,-500.0,0.00013697,2]
[353928504,1740151845991,-500.0,0.00013697,2]
[353928505,1740151846001,-500.0,0.00013697,2]
[353928506,1740151846010,-500.0,0.00013697,2]
[353928507,1740151846020,-500.0,0.00013697,2]
[353928508,1740151846029,-500.0,0.00013697,2]
[353928509,1740151846038,-500.0,0.00013697,2]
[353928510,1740151846048,-500.0,0.00013697,2]
[353928511,1740151846057,-500.0,0.00013697,2]
[353928512,1740151846067,-500.0,0.00013697,2]
[353928513,1740151846076,-500.0,0.00013697,2]
[353928514,1740151846085,-500.0,0.00013697,2]
[353928515,1740151846094,-500.0,0.00013697,2]
[353928516,1740151846104,-502.7743358,0.00013697,2]
[353928517,1740151846116,-500.0,0.00013697,2]
[353928518,1740151846126,-502.12885846,0.00013697,2]
[353928519,1740151846135,-500.0,0.00013697,2]
[353928520,1740151846145,-500.0,0.00013697,2]
[353928521,1740151846155,-500.0,0.00013697,2]
[353928522,1740151846165,-500.0,0.00013697,2]
[353928524,1740151846174,-500.0,0.00013697,2]
[353928526,1740151846184,-500.0,0.00013697,2]
[353928528,1740151846194,-500.0,0.00013697,2]
[353928530,1740151846204,-500.0,0.00013697,2]
[353928532,1740151846213,-480.58734595,0.00013697,2]
[353928534,1740151846232,-19.41265405,0.00013697,2]
[353928535,1740151846241,-500.0,0.00013697,2]
[353928536,1740151846251,-500.0,0.00013697,2]
[353928537,1740151846260,-500.0,0.00013697,2]
[353928538,1740151846270,-500.0,0.00013697,2]
[353928539,1740151846279,-500.0,0.00013697,2]
[353928540,1740151846289,-500.0,0.00013697,2]
[353928541,1740151846299,-500.0,0.00013697,2]
[353928542,1740151846309,-500.0,0.00013697,2]
[353928543,1740151846318,-500.0,0.00013697,2]
[353928544,1740151846328,-500.0,0.00013697,2]
[353928545,1740151846338,-555.83031614,0.00013697,2]
[353928546,1740151846348,-500.0,0.00013697,2]
[353928547,1740151846357,-500.0,0.00013697,2]
[353928548,1740151846369,-500.0,0.00013697,2]
[353928549,1740151846379,-500.0,0.00013697,2]
[353928550,1740151846388,-500.0,0.00013697,2]
[353928551,1740151846397,-507.90733075,0.00013697,2]
[353928552,1740151846406,-500.0,0.00013697,2]
[353928553,1740151846417,-500.0,0.00013697,2]
[353928554,1740151846426,-500.0,0.00013697,2]
[353928555,1740151846436,-500.0,0.00013697,2]
[353928556,1740151846446,-500.0,0.00013697,2]
[353928557,1740151846455,-500.0,0.00013697,2]
[353928558,1740151846464,-500.0,0.00013697,2]
[353928559,1740151846473,-500.0,0.00013697,2]
[353928560,1740151846483,-500.0,0.00013697,2]
[353928561,1740151846492,-500.0,0.00013697,2]
[353928562,1740151846501,-500.0,0.00013697,2]
[353928563,1740151846511,-500.0,0.00013697,2]
[353928564,1740151846521,-500.0,0.00013697,2]
[353928565,1740151846531,-500.0,0.00013697,2]
[353928566,1740151846540,-500.0,0.00013697,2]
[353928567,1740151846549,-500.0,0.00013697,2]
[353928568,1740151846558,-500.0,0.00013697,2]
[353928569,1740151846567,-500.0,0.00013697,2]
[353928570,1740151846576,-500.0,0.00013697,2]
[353928571,1740151846587,-500.0,0.00013697,2]
[353928572,1740151846596,-500.0,0.00013697,2]
[353928573,1740151846605,-500.0,0.00013697,2]
[353928574,1740151846616,-500.0,0.00013697,2]
[353928575,1740151846628,-500.0,0.00013697,2]
[353928576,1740151846637,-500.0,0.00013697,2]
[353928577,1740151846646,-500.0,0.00013697,2]
[353928578,1740151846655,-500.0,0.00013697,2]
[353928579,1740151846664,-382.71777698,0.00013697,2]
[353928580,1740151846673,-604.1766682,0.00013697,2]
[353928581,1740151846683,-518.69485605,0.00013697,2]
[353928582,1740151846693,-500.0,0.00013697,2]
[353928583,1740151846704,-500.0,0.00013697,2]
[353928584,1740151846715,-500.0,0.00013697,2]
[353928585,1740151846725,-500.0,0.00013697,2]
[353928586,1740151846734,-500.0,0.00013697,2]
[353928587,1740151846745,-500.0,0.00013697,2]
[353928588,1740151846757,-506.89448119,0.00013697,2]
[353928589,1740151846766,-500.0,0.00013697,2]
[353928590,1740151846778,-500.0,0.00013697,2]
[353928591,1740151846787,-500.0,0.00013697,2]
[353928592,1740151846796,-370.9414182,0.00013697,2]
[353928593,1740151846805,-500.0,0.00013697,2]
[353928594,1740151846814,-500.0,0.00013697,2]
[353928595,1740151846823,-500.0,0.00013697,2]
[353928596,1740151846832,-500.0,0.00013697,2]
[353928597,1740151846841,-507.51627905,0.00013697,2]
[353928598,1740151846850,-511.88097281,0.00013697,2]
[353928599,1740151846859,-500.0,0.00013697,2]
[353928600,1740151846869,-500.0,0.00013697,2]
[353928601,1740151846878,-292.86027112,0.00013697,2]
[353928602,1740151846887,-500.0,0.00013697,2]
[353928603,1740151846897,-500.0,0.00013697,2]
[353928604,1740151846906,-500.0,0.00013697,2]
[353928605,1740151846915,-500.0,0.00013697,2]
[353928606,1740151846924,-500.0,0.00013697,2]
[353928607,1740151846933,-506.30990886,0.00013697,2]
[353928608,1740151846942,-500.0,0.00013697,2]
[353928609,1740151846951,-500.0,0.00013697,2]
[353928610,1740151846960,-500.0,0.00013697,2]
[353928611,1740151846970,-504.80764835,0.00013697,2]
[353928612,1740151846979,-500.0,0.00013697,2]
[353928613,1740151846988,-247.35917556,0.00013697,2]
[353928614,1740151846997,-500.0,0.00013697,2]
[353928615,1740151847006,-500.0,0.00013697,2]
[353928616,1740151847015,-507.22510476,0.00013697,2]
[353928617,1740151847024,-500.0,0.00013697,2]
[353928618,1740151847033,-500.0,0.00013697,2]
[353928619,1740151847042,-500.0,0.00013697,2]
[353928620,1740151847051,-500.0,0.00013697,2]
[353928621,1740151847061,-500.0,0.00013697,2]
[353928622,1740151847070,-456.11159142,0.00013697,2]
[353928623,1740151847079,-500.0,0.00013697,2]
[353928624,1740151847088,-500.0,0.00013697,2]
[353928625,1740151847099,-500.0,0.00013697,2]
[353928626,1740151847109,-500.0,0.00013697,2]
[353928627,1740151847120,-500.0,0.00013697,2]
[353928628,1740151847130,-500.0,0.00013697,2]
[353928629,1740151847139,-500.0,0.00013697,2]
[353928630,1740151847148,-500.0,0.00013697,2]
[353928631,1740151847157,-500.0,0.00013697,2]
[353928632,1740151847166,-500.0,0.00013697,2]
[353928633,1740151847175,-500.0,0.00013697,2]
[353928634,1740151847184,-500.0,0.00013697,2]
[353928635,1740151847194,-500.0,0.00013697,2]
[353928636,1740151847204,-500.0,0.00013697,2]
[353928637,1740151847213,-514.54566856,0.00013697,2]
[353928638,1740151847222,-500.0,0.00013697,2]
[353928639,1740151847231,-500.0,0.00013697,2]
[353928640,1740151847241,-500.0,0.00013697,2]
[353928641,1740151847250,-500.0,0.00013697,2]
[353928642,1740151847259,-500.0,0.00013697,2]
[353928643,1740151847267,-500.0,0.00013697,2]
[353928644,1740151847276,-500.0,0.00013697,2]
[353928645,1740151847285,-500.0,0.00013697,2]
[353928646,1740151847294,-516.15371478,0.00013697,2]
[353928647,1740151847303,-500.0,0.00013697,2]
[353928648,1740151847312,-500.0,0.00013697,2]
[353928649,1740151847321,-500.0,0.00013697,2]
[353928650,1740151847330,-500.0,0.00013697,2]
[353928651,1740151847339,-674.2,0.00013697,2]
[353928652,1740151847348,-500.0,0.00013697,2]
[353928653,1740151847357,-500.0,0.00013697,2]
[353928654,1740151847366,-500.0,0.00013697,2]
[353928655,1740151847375,-539.56,0.00013697,2]
[353928656,1740151847385,-500.0,0.00013697,2]
[353928657,1740151847394,-500.0,0.00013697,2]
[353928658,1740151847404,-500.0,0.00013697,2]
[353928659,1740151847413,-500.0,0.00013697,2]
[353928660,1740151847422,-545.79556459,0.00013697,2]
[353928661,1740151847431,-500.0,0.00013697,2]
[353928662,1740151847440,-367.42503957,0.00013697,2]
[353928663,1740151847449,-500.0,0.00013697,2]
[353928664,1740151847458,-500.0,0.00013697,2]
[353928665,1740151847467,-500.0,0.00013697,2]
[353928666,1740151847476,-500.0,0.00013697,2]
[353928667,1740151847597,-500.0,0.00013697,2]
[353928668,1740151847610,-500.0,0.00013697,2]
[353928669,1740151847623,-500.0,0.00013697,2]
[353928670,1740151847632,-500.0,0.00013697,2]
[353928671,1740151847641,-500.0,0.00013697,2]
[353928672,1740151847652,-500.0,0.00013697,2]
[353928673,1740151847661,-207.85,0.00013697,2]
[353928674,1740151847671,-500.0,0.00013697,2]
[353928675,1740151847681,-48.92269998,0.00013697,2]
[353928676,1740151847695,-370.9414182,0.00013697,2]
[353928677,1740151847763,-80.13588182,0.00013697,2]
[353928678,1740151847773,-607.09,0.00013697,2]
[353928679,1740151847782,-500.0,0.00013697,2]
[353928680,1740151847791,-500.0,0.00013697,2]
[353928681,1740151847800,-1123.77411818,0.00013697,2]
[353928682,1740151847811,-657.15000005,0.00013697,2]
[353928683,1740151847823,-44.25588177,0.00013697,2]
[353928684,1740151847832,-615.89412103,0.00013697,2]
[353928685,1740151847932,-151.0,0.00013689,2]
[353928686,1740151847942,-1209.28587897,0.00013697,2]
[353928687,1740151847952,-1825.18,0.00013697,2]
[353928688,1740151847962,-1746.56309023,0.00013697,2]
[353928689,1740152236518,1000.0,0.0002,120]
[353928691,1740152360633,2000.0,0.0002,120]
[353928743,1740152972894,75962.72520705,0.0002,120]
[353928764,1740153032011,-159.35,0.00010103,2]
[353928766,1740153032023,-635.2,0.00010457,2]
[353928767,1740153032033,-152.18,0.00010603,2]
[353928768,1740153032043,-152.54,0.00010603,2]
[353928769,1740153032053,-151.57,0.00010603,2]
[353928770,1740153032062,-54.56,0.00011933,2]
[353928771,1740153032075,-307.4854,0.00011933,2]
[353928772,1740153032084,-701.2363319,0.00012118,2]
[353928773,1740153032176,-498.23109025,0.00012118,2]
[353928774,1740153032187,-2225.78299031,0.00012118,2]
[353928775,1740153032199,-14463.95828352,0.00012118,2]
[353928776,1740153032211,-4750.87130402,0.00012118,2]
[353928777,1740153032221,-250.0,0.00012136,2]
[353928778,1740153032230,-4023.63,0.00012265,2]
[353928779,1740153032240,-201.8,0.00012269,2]
[353928780,1740153032251,-162.36,0.00012298,2]
[353928781,1740153032260,-1000.0,0.00012304,2]
[353928782,1740153032269,-150.0,0.00012329,2]
[353928783,1740153032279,-150.0,0.00012329,2]
[353928784,1740153032288,-150.0,0.00012329,2]
[353928785,1740153032298,-67.83869598,0.00012329,2]
[353928786,1740153032310,-82.16130402,0.00012329,2]
[353928787,1740153032320,-150.0,0.00012334,2]
[353928788,1740153032329,-236.97,0.00012629,2]
[353928789,1740153032339,-1551.96,0.000127,2]
[353928790,1740153032348,-635.2,0.00012721,2]
[353928791,1740153032357,-425.56,0.00012741,2]
[353928792,1740153032367,-440.33,0.00012841,2]
[353928793,1740153032376,-776.16,0.00012877,2]
[353928794,1740153032391,-776.16,0.00012877,2]
[353928795,1740153032401,-776.16,0.00012877,2]
[353928796,1740153032410,-325.82588144,0.00012877,2]
[353928797,1740153032422,-450.33411856,0.00012877,2]
[353928798,1740153032432,-405.86,0.00012877,2]
[353928799,1740153032442,-760.61878421,0.00012877,2]
[353928800,1740153032453,-226.65121579,0.00012877,2]
[353928801,1740153032463,-986.07,0.00012877,2]
[353928802,1740153032473,-234.75394945,0.00012878,2]
[353928803,1740153032484,-752.51605055,0.00012878,2]
[353928804,1740153032494,-987.27,0.00012978,2]
[353928805,1740153032503,-500.0,0.00013044,2]
[353928806,1740153032512,-250.0,0.00013044,2]
[353928807,1740153032522,-499.28,0.00013048,2]
[353928808,1740153032532,-491.71,0.00013052,2]
[353928809,1740153032541,-509.42,0.00013061,2]
[353928810,1740153032551,-494.84,0.00013077,2]
[353928811,1740153032560,-492.05,0.00013111,2]
[353928812,1740153032569,-5098.0,0.00013151,2]
[353928813,1740153032579,-877.41,0.00013151,2]
[353928814,1740153032588,-432.31286095,0.00013164,2]
[353928815,1740153032597,-502.33,0.00013178,2]
[353928816,1740153032606,-284.95864806,0.00013298,2]
[353928817,1740153032616,-200.0,0.00013316,2]
[353928818,1740153032625,-4246.63621935,0.00013324,2]
[353928819,1740153032639,-5010.827,0.00013324,2]
[353928820,1740153032649,-12515.02893049,0.00013324,2]
[353928821,1740153032674,-492.95085814,0.00013324,2]
[353928822,1740153032686,-402.44160121,0.00013324,2]
[353928824,1740153032698,-10682.59011016,0.00013324,2]
[353928826,1740153032707,-462.3047,0.00013324,2]
[353928828,1740153032717,-367.58,0.00013324,2]
[353928830,1740153032727,-5000.0,0.00013324,2]
[353928832,1740153032737,-2643.1379,0.00013324,2]
[353928834,1740153032747,-3398.5293,0.00013324,2]
[353928836,1740153032756,-1568.1875,0.00013324,2]
[353928838,1740153032766,-2045.8616,0.00013324,2]
[353928840,1740153032775,-945.57730844,0.00013366,2]
[353928842,1740153032786,-590.59698803,0.00013366,2]
[353928844,1740153032798,-2710.46192282,0.00013366,2]
[353928846,1740153032807,-1200.0,0.000134,4]
[353928848,1740153032816,-493.34,0.00013404,2]
[353928849,1740153032825,-1274.0,0.00013405,2]
[353928850,1740153032835,-784.0,0.00013405,2]
[353928851,1740153032844,-1266.0,0.00013405,2]
[353928852,1740153032854,-1424.0,0.00013405,2]
[353928853,1740153032863,-908.0,0.00013405,2]
[353928854,1740153032872,-539.0,0.00013405,2]
[353928855,1740153032885,-4030.0,0.00013405,2]
[353928856,1740153032894,-4246.63621929,0.00013408,2]
[353928857,1740153032903,-159.495628,0.00013424,2]
[353928858,1740153032912,-500.0,0.00013424,2]
[353928859,1740153032922,-500.0,0.00013424,2]
[353928860,1740153032931,-500.0,0.00013424,2]
[353928861,1740153032941,-500.0,0.00013424,2]
[353928862,1740153032950,-500.0,0.00013424,2]
[353928863,1740153032959,-500.44121385,0.00013424,2]
[353928864,1740153032972,-845.999788,0.00013424,2]
[353928865,1740153032984,-393.51967789,0.00013424,2]
[353928866,1740153032993,-500.0,0.00013424,2]
[353928867,1740153033003,-550.49362388,0.00013424,2]
[353928868,1740153033013,-500.0,0.00013424,2]
[353928869,1740153033023,-888.499974,0.00013424,2]
[353928870,1740153033037,-500.0,0.00013424,2]
[353928871,1740153033047,-500.0,0.00013424,2]
[353928872,1740153033056,-500.0,0.00013424,2]
[353928873,1740153033066,-500.0,0.00013424,2]
[353928874,1740153033075,-503.24398868,0.00013424,2]
[353928875,1740153033085,-500.0,0.00013424,2]
[353928876,1740153033095,-636.17748975,0.00013424,2]
[353928877,1740153033107,-159.831113,0.00013424,2]
[353928878,1740153033116,-500.48395199,0.00013424,2]
[353928879,1740153033126,-500.70398151,0.00013424,2]
[353928880,1740153033139,-500.0,0.00013424,2]
[353928881,1740153033149,-500.0,0.00013424,2]
[353928882,1740153033158,-500.0,0.00013424,2]
[353928883,1740153033168,-500.0,0.00013424,2]
[353928884,1740153033178,-500.0,0.00013424,2]
[353928885,1740153033187,-500.0,0.00013424,2]
[353928886,1740153033197,-500.0,0.00013424,2]
[353928887,1740153033207,-500.0,0.00013424,2]
[353928888,1740153033216,-500.0,0.00013424,2]
[353928889,1740153033226,-500.0,0.00013424,2]
[353928890,1740153033236,-500.0,0.00013424,2]
[353928891,1740153033245,-500.0,0.00013424,2]
[353928892,1740153033254,-500.0,0.00013424,2]
[353928893,1740153033264,-500.0,0.00013424,2]
[353928894,1740153033274,-500.0,0.00013424,2]
[353928895,1740153033283,-500.0,0.00013424,2]
[353928896,1740153033293,-505.45602444,0.00013424,2]